fUSD/lending_fUSD_20240412
["ID","MTS","AMOUNT","RATE_DAILY","PERIOD"]
[322334278,1712956304063,-500.0,0.00047397,31]
[322334279,1712956304075,-500.0,0.00047397,31]
[322334280,1712956304084,-500.0,0.00047397,31]
[322334281,1712956304094,-500.0,0.00047397,31]
[322334282,1712956304103,-500.0,0.00047397,31]
[322334283,1712956304112,-500.0,0.00047397,31]
[322334284,1712956304123,-500.0,0.00047397,31]
[322334285,1712956304134,-500.0,0.00047397,31]
[322334286,1712956304144,-500.0,0.00047397,31]
[322334287,1712956304154,-500.0,0.00047397,31]
[322334288,1712956304163,-500.0,0.00047397,31]
[322334289,1712956304173,-500.0,0.00047397,31]
[322334290,1712956304182,-500.0,0.00047397,31]
[322334291,1712956304190,-500.0,0.00047397,31]
[322334292,1712956304200,-280.1217107,0.00047397,31]
[322334293,1712956304209,-500.0,0.00047397,31]
[322334294,1712956304219,-571.13,0.00047397,31]
[322334295,1712956304228,-500.0,0.00047397,31]
[322334296,1712956304238,-500.0,0.00047397,31]
[322334297,1712956304247,-500.0,0.00047397,31]
[322334298,1712956304256,-500.0,0.00047397,31]
[322334299,1712956304265,-512.13007944,0.00047397,31]
[322334300,1712956304276,-500.0,0.00047397,31]
[322334301,1712956304285,-500.0,0.00047397,31]
[322334302,1712956304294,-620.52,0.00047397,31]
[322334303,1712956304304,-401.340129,0.00047397,14]
[322334304,1712956304315,-539.6,0.00047397,31]
[322334305,1712956304325,-500.0,0.00047397,31]
[322334306,1712956304337,-496.627602,0.00047397,14]
[322334307,1712956304346,-500.0,0.00047397,31]
[322334308,1712956304356,-500.0,0.00047397,31]
[322334309,1712956304365,-206.91721173,0.00047397,31]
[322334310,1712956304374,-401.340129,0.00047397,14]
[322334311,1712956304383,-717.8,0.00047397,31]
[322334312,1712956304392,-500.0,0.00047397,31]
[322334313,1712956304401,-676.11,0.00047397,31]
[322334314,1712956304411,-496.627602,0.00047397,14]
[322334315,1712956304420,-500.0,0.00047397,31]
[322334316,1712956304430,-500.0,0.00047397,31]
[322334317,1712956304439,-500.0,0.00047397,31]
[322334318,1712956304449,-500.0,0.00047397,31]
[322334319,1712956304459,-500.0,0.00047397,31]
[322334320,1712956304468,-500.0,0.00047397,31]
[322334321,1712956304477,-500.0,0.00047397,31]
[322334322,1712956304486,-500.0,0.00047397,31]
[322334323,1712956304496,-696.14,0.00047397,31]
[322334324,1712956304505,-500.0,0.00047397,31]
[322334325,1712956304514,-500.0,0.00047397,31]
[322334326,1712956304524,-500.0,0.00047397,31]
[322334327,1712956304533,-500.0,0.00047397,31]
[322334328,1712956304543,-500.0,0.00047397,31]
[322334329,1712956304552,-500.0,0.00047397,31]
[322334330,1712956304562,-151.0,0.00047397,14]
[322334331,1712956304573,-681.42,0.00047397,31]
[322334332,1712956304582,-500.0,0.00047397,31]
[322334333,1712956304591,-482.09797358,0.00047397,31]
[322334334,1712956304601,-500.0,0.00047397,31]
[322334335,1712956304610,-500.0,0.00047397,31]
[322334336,1712956304619,-500.0,0.00047397,31]
[322334337,1712956304628,-500.0,0.00047397,31]
[322334338,1712956304637,-500.0,0.00047397,31]
[322334339,1712956304646,-500.0,0.00047397,31]
[322334340,1712956304655,-900.567219,0.00047397,14]
[322334341,1712956304664,-500.0,0.00047397,31]
[322334342,1712956304673,-500.0,0.00047397,31]
[322334343,1712956304682,-900.567219,0.00047397,14]
[322334344,1712956304691,-643.83,0.00047397,31]
[322334345,1712956304700,-500.0,0.00047397,31]
[322334346,1712956304711,-262.229092,0.00047397,14]
[322334347,1712956304720,-500.0,0.00047397,31]
[322334348,1712956304730,-152.98,0.00047397,31]
[322334349,1712956304739,-1817.19,0.00047397,31]
[322334350,1712956304748,-500.0,0.00047397,31]
[322334351,1712956304758,-500.0,0.00047397,31]
[322334352,1712956304768,-500.0,0.00047397,31]
[322334353,1712956304779,-519.91,0.00047397,31]
[322334354,1712956304788,-500.0,0.00047397,31]
[322334355,1712956304797,-500.0,0.00047397,31]
[322334356,1712956304806,-500.0,0.00047397,31]
[322334357,1712956304818,-500.0,0.00047397,31]
[322334358,1712956304827,-305.74940855,0.00047397,31]
[322334359,1712956304838,-500.0,0.00047397,31]
[322334360,1712956304847,-500.0,0.00047397,31]
[322334361,1712956304856,-500.0,0.00047397,31]
[322334362,1712956304866,-500.0,0.00047397,31]
[322334363,1712956304876,-500.0,0.00047397,31]
[322334364,1712956304886,-500.0,0.00047397,31]
[322334365,1712956304897,-665.13,0.00047397,31]
[322334366,1712956304906,-562.52,0.00047397,31]
[322334367,1712956304915,-500.0,0.00047397,31]
[322334368,1712956304925,-336.527194,0.00047397,14]
[322334369,1712956304934,-500.0,0.00047397,31]
[322334370,1712956304943,-500.0,0.00047397,31]
[322334371,1712956304953,-500.0,0.00047397,31]
[322334372,1712956304962,-500.0,0.00047397,31]
[322334373,1712956304971,-500.0,0.00047397,31]
[322334374,1712956304982,-336.527194,0.00047397,14]
[322334375,1712956304991,-500.0,0.00047397,31]
[322334376,1712956305002,-500.0,0.00047397,31]
[322334377,1712956305011,-500.0,0.00047397,31]
[322334378,1712956305021,-500.0,0.00047397,31]
[322334379,1712956305030,-500.0,0.00047397,31]
[322334380,1712956305039,-8352.31,0.00047397,31]
[322334381,1712956305048,-500.0,0.00047397,31]
[322334382,1712956305057,-500.0,0.00047397,31]
[322334383,1712956305068,-500.0,0.00047397,31]
[322334384,1712956305077,-649.27,0.00047397,31]
[322334385,1712956305086,-500.0,0.00047397,31]
[322334386,1712956305095,-791.6,0.00047397,31]
[322334387,1712956305105,-500.0,0.00047397,31]
[322334388,1712956305114,-500.0,0.00047397,31]
[322334389,1712956305122,-151.0,0.00047397,14]
[322334390,1712956305132,-500.0,0.00047397,31]
[322334391,1712956305141,-500.0,0.00047397,31]
[322334392,1712956305150,-511.51,0.00047397,7]
[322334393,1712956305159,-500.0,0.00047397,31]
[322334394,1712956305168,-1945.07,0.00047397,31]
[322334395,1712956305178,-684.24,0.00047397,31]
[322334396,1712956305187,-309.65175607,0.00047397,31]
[322334397,1712956305196,-500.0,0.00047397,31]
[322334398,1712956305206,-500.0,0.00047397,31]
[322334399,1712956305214,-327.32444834,0.00047397,31]
[322334400,1712956305223,-500.0,0.00047397,31]
[322334401,1712956305233,-500.0,0.00047397,31]
[322334402,1712956305244,-674.93,0.00047397,31]
[322334403,1712956305253,-500.0,0.00047397,31]
[322334404,1712956305262,-500.0,0.00047397,31]
[322334405,1712956305271,-500.0,0.00047397,31]
[322334406,1712956305281,-500.0,0.00047397,30]
[322334407,1712956305290,-567.45861084,0.00047397,31]
[322334408,1712956305299,-500.0,0.00047397,31]
[322334409,1712956305309,-500.0,0.00047397,31]
[322334410,1712956305319,-1181.86,0.00047397,31]
[322334411,1712956305328,-500.0,0.00047397,31]
[322334412,1712956305337,-500.0,0.00047397,31]
[322334413,1712956305347,-500.0,0.00047397,31]
[322334414,1712956305357,-500.0,0.00047397,31]
[322334415,1712956305366,-500.0,0.00047397,31]
[322334416,1712956305375,-184.98405149,0.00047397,31]
[322334417,1712956305385,-151.0,0.00047397,14]
[322334418,1712956305395,-189.299703,0.00047397,14]
[322334419,1712956305405,-500.0,0.00047397,31]
[322334420,1712956305415,-500.0,0.00047397,31]
[322334421,1712956305427,-696.23,0.00047397,31]
[322334422,1712956305436,-500.0,0.00047397,31]
[322334423,1712956305512,-189.299703,0.00047397,14]
[322334424,1712956305521,-500.0,0.00047397,31]
[322334425,1712956305530,-500.0,0.00047397,31]
[322334426,1712956305539,-500.0,0.00047397,31]
[322334427,1712956305549,-500.0,0.00047397,31]
[322334428,1712956305558,-500.0,0.00047397,31]
[322334429,1712956305570,-1356.46,0.00047397,31]
[322334430,1712956305580,-2478.45,0.00047397,31]
[322334431,1712956305588,-500.0,0.00047397,31]
[322334432,1712956305597,-500.0,0.00047397,31]
[322334433,1712956305606,-500.0,0.00047397,31]
[322334434,1712956305615,-500.0,0.00047397,31]
[322334435,1712956305624,-500.0,0.00047397,31]
[322334436,1712956305633,-500.0,0.00047397,31]
[322334437,1712956305642,-500.0,0.00047397,31]
[322334438,1712956305651,-500.0,0.00047397,31]
[322334439,1712956305660,-500.0,0.00047397,31]
[322334440,1712956305671,-500.0,0.00047397,31]
[322334441,1712956305680,-430.1475637,0.00047397,31]
[322334442,1712956305688,-500.0,0.00047397,31]
[322334443,1712956305697,-500.0,0.00047397,31]
[322334444,1712956305706,-500.0,0.00047397,31]
[322334445,1712956305716,-527.76,0.00047397,31]
[322334446,1712956305725,-500.0,0.00047397,31]
[322334447,1712956305734,-500.0,0.00047397,31]
[322334448,1712956305744,-4040.59,0.00047397,31]
[322334449,1712956305753,-500.0,0.00047397,31]
[322334450,1712956305762,-806.53,0.00047397,31]
[322334451,1712956305771,-500.0,0.00047397,31]
[322334452,1712956305780,-500.0,0.00047397,31]
[322334453,1712956305789,-1501.77,0.00047397,31]
[322334454,1712956305798,-500.0,0.00047397,31]
[322334455,1712956305807,-500.0,0.00047397,31]
[322334456,1712956305819,-500.0,0.00047397,31]
[322334457,1712956305828,-315.0,0.00047397,14]
[322334458,1712956305837,-500.0,0.00047397,31]
[322334459,1712956305845,-500.0,0.00047397,31]
[322334460,1712956305854,-315.0,0.00047397,14]
[322334461,1712956305863,-151.0,0.00047397,14]
[322334462,1712956305874,-500.0,0.00047397,31]
[322334463,1712956305882,-500.0,0.00047397,31]
[322334464,1712956305891,-500.0,0.00047397,31]
[322334465,1712956305899,-500.77488151,0.00047397,31]
[322334466,1712956305908,-500.0,0.00047397,31]
[322334467,1712956305917,-500.0,0.00047397,31]
[322334468,1712956305925,-500.0,0.00047397,31]
[322334469,1712956305934,-582.04,0.00047397,31]
[322334470,1712956305943,-500.0,0.00047397,31]
[322334471,1712956305952,-575.83,0.00047397,31]
[322334472,1712956305961,-500.0,0.00047397,31]
[322334473,1712956305970,-500.0,0.00047397,31]
[322334474,1712956305979,-500.0,0.00047397,31]
[322334475,1712956305988,-500.0,0.00047397,31]
[322334476,1712956305997,-500.0,0.00047397,31]
[322334477,1712956306006,-500.0,0.00047397,31]
[322334478,1712956306015,-500.0,0.00047397,31]
[322334479,1712956306024,-500.0,0.00047397,31]
[322334480,1712956306033,-500.0,0.00047397,31]
[322334481,1712956306042,-500.0,0.00047397,31]
[322334482,1712956306051,-500.0,0.00047397,31]
[322334483,1712956306059,-188.782729,0.00047397,14]
[322334484,1712956306070,-539.92921783,0.00047397,31]
[322334485,1712956306079,-500.0,0.00047397,31]
[322334486,1712956306088,-624.07,0.00047397,31]
[322334487,1712956306097,-583.16,0.00047397,31]
[322334488,1712956306106,-500.0,0.00047397,31]
[322334489,1712956306115,-188.782729,0.00047397,14]
[322334490,1712956306124,-500.0,0.00047397,31]
[322334491,1712956306133,-500.0,0.00047397,31]
[322334492,1712956306142,-500.0,0.00047397,31]
[322334493,1712956306151,-1903.42,0.00047397,31]
[322334494,1712956306160,-500.0,0.00047397,31]
[322334495,1712956306169,-500.0,0.00047397,31]
[322334496,1712956306179,-500.0,0.00047397,31]
[322334497,1712956306188,-500.0,0.00047397,31]
[322334498,1712956306197,-500.0,0.00047397,31]
[322334499,1712956306207,-500.0,0.00047397,31]
[322334500,1712956306216,-500.0,0.00047397,31]
[322334501,1712956306225,-805.36,0.00047397,31]
[322334502,1712956306235,-500.0,0.00047397,31]
[322334503,1712956306245,-500.0,0.00047397,31]
[322334504,1712956306254,-528.46,0.00047397,31]
[322334505,1712956306263,-500.0,0.00047397,31]
[322334506,1712956306273,-1458.26,0.00047397,31]
[322334507,1712956306282,-500.0,0.00047397,31]
[322334508,1712956306293,-500.0,0.00047397,31]
[322334509,1712956306302,-500.0,0.00047397,31]
[322334510,1712956306314,-500.0,0.00047397,31]
[322334511,1712956306324,-1111.117458,0.00047397,14]
[322334512,1712956306336,-500.0,0.00047397,31]
[322334513,1712956306345,-521.67,0.00047397,31]
[322334514,1712956306354,-500.0,0.00047397,31]
[322334515,1712956306364,-1111.117458,0.00047397,14]
[322334516,1712956306374,-500.0,0.00047397,31]
[322334517,1712956306383,-935.26,0.00047397,31]
[322334518,1712956306393,-1535.17,0.00047397,31]
[322334519,1712956306402,-500.0,0.00047397,31]
[322334520,1712956306411,-541.82,0.00047397,31]
[322334521,1712956306420,-774.55,0.00047397,31]
[322334522,1712956306430,-500.0,0.00047397,31]
[322334523,1712956306440,-500.0,0.00047397,31]
[322334524,1712956306450,-500.0,0.00047397,31]
[322334525,1712956306459,-20341.84,0.00047397,31]
[322334526,1712956306469,-500.0,0.00047397,31]
[322334527,1712956306478,-500.0,0.00047397,31]
[322334528,1712956306488,-500.0,0.00047397,31]
[322334529,1712956306498,-500.0,0.00047397,31]
[322334530,1712956306507,-500.0,0.00047397,31]
[322334531,1712956306517,-1246.74,0.00047397,31]
[322334532,1712956306526,-500.0,0.00047397,31]
[322334533,1712956306535,-500.0,0.00047397,31]
[322334534,1712956306545,-652.08,0.00047397,31]
[322334535,1712956306554,-1608.86,0.00047397,31]
[322334536,1712956306564,-500.0,0.00047397,31]
[322334537,1712956306574,-500.0,0.00047397,31]
[322334538,1712956306583,-500.0,0.00047397,31]
[322334539,1712956306593,-469.363151,0.00047397,14]
[322334540,1712956306602,-874.86,0.00047397,31]
[322334541,1712956306612,-500.0,0.00047397,31]
[322334542,1712956306622,-500.0,0.00047397,31]
[322334543,1712956306631,-499.84469003,0.00047397,31]
[322334544,1712956306641,-500.0,0.00047397,31]
[322334545,1712956306651,-469.363151,0.00047397,14]
[322334546,1712956306661,-174.022076,0.00047397,14]
[322334547,1712956306670,-500.0,0.00047397,31]
[322334548,1712956306680,-1419.72,0.00047397,31]
[322334549,1712956306690,-500.0,0.00047397,31]
[322334550,1712956306700,-500.0,0.00047397,31]
[322334551,1712956306710,-500.0,0.00047397,31]
[322334552,1712956306720,-174.022076,0.00047397,14]
[322334553,1712956306730,-3646.35,0.00047397,31]
[322334554,1712956306740,-3711.37,0.00047397,31]
[322334555,1712956306750,-500.0,0.00047397,31]
[322334556,1712956306759,-500.0,0.00047397,31]
[322334557,1712956306769,-500.0,0.00047397,31]
[322334558,1712956306779,-644.18,0.00047397,31]
[322334559,1712956306789,-500.0,0.00047397,31]
[322334560,1712956306798,-500.0,0.00047397,31]
[322334561,1712956306808,-500.0,0.00047397,31]
[322334562,1712956306818,-500.0,0.00047397,31]
[322334563,1712956306828,-500.0,0.00047397,31]
[322334564,1712956306838,-500.0,0.00047397,31]
[322334565,1712956306848,-1230.23,0.00047397,31]
[322334566,1712956306857,-500.0,0.00047397,31]
[322334567,1712956306867,-500.0,0.00047397,31]
[322334568,1712956306877,-529.81,0.00047397,31]
[322334569,1712956306887,-349.71166,0.00047397,14]
[322334570,1712956306896,-500.0,0.00047397,31]
[322334571,1712956306906,-500.0,0.00047397,31]
[322334572,1712956306916,-500.0,0.00047397,31]
[322334573,1712956306926,-151.0,0.00047397,14]
[322334574,1712956306935,-1773.86,0.00047397,31]
[322334575,1712956306945,-349.71166,0.00047397,14]
[322334576,1712956306955,-732.33,0.00047397,31]
[322334577,1712956306966,-2118.05,0.00047397,31]
[322334578,1712956306976,-354.803703,0.00047397,14]
[322334579,1712956306986,-645.62,0.00047397,31]
[322334580,1712956306996,-500.0,0.00047397,31]
[322334581,1712956307006,-503.54626192,0.00047397,31]
[322334582,1712956307016,-546.03,0.00047397,31]
[322334583,1712956307027,-354.803703,0.00047397,14]
[322334584,1712956307036,-1198.72,0.00047397,31]
[322334585,1712956307046,-564.56510251,0.00047397,31]
[322334586,1712956307056,-500.0,0.00047397,31]
[322334587,1712956307070,-500.0,0.00047397,31]
[322334588,1712956307080,-500.0,0.00047397,31]
[322334589,1712956307091,-2977.13,0.00047397,31]
[322334590,1712956307102,-5708.25,0.00047397,31]
[322334591,1712956307112,-500.0,0.00047397,31]
[322334592,1712956307122,-746.8,0.00047397,31]
[322334593,1712956307131,-498.10975514,0.00047397,31]
[322334594,1712956307142,-664.07,0.00047397,31]
[322334595,1712956307152,-500.0,0.00047397,31]
[322334596,1712956307162,-500.0,0.00047397,31]
[322334597,1712956307173,-500.0,0.00047397,31]
[322334598,1712956307183,-1521.01,0.00047397,31]
[322334599,1712956307195,-500.0,0.00047397,31]
[322334600,1712956307206,-2320.0,0.00047397,31]
[322334601,1712956307218,-500.0,0.00047397,31]
[322334602,1712956307229,-706.82,0.00047397,31]
[322334603,1712956307241,-3679.13,0.00047397,31]
[322334604,1712956307257,-506.96302797,0.00047397,31]
[322334605,1712956307275,-500.0,0.00047397,31]
[322334606,1712956307294,-500.0,0.00047397,31]
[322334607,1712956307308,-500.0,0.00047397,31]
[322334608,1712956307327,-15731.26,0.00047397,31]
[322334609,1712956307345,-1058.86,0.00047397,31]
[322334610,1712956307360,-521.02,0.00047397,31]
[322334611,1712956307373,-1703.15,0.00047397,31]
[322334612,1712956307391,-197.53395324,0.00047397,31]
[322334613,1712956307407,-500.0,0.00047397,31]
[322334614,1712956307422,-500.0,0.00047397,31]
[322334615,1712956307436,-1166.54,0.00047397,31]
[322334616,1712956307452,-2094.0,0.00047397,31]
[322334617,1712956307467,-500.0,0.00047397,30]
[322334618,1712956307483,-500.0,0.00047397,31]
[322334619,1712956307497,-151.0,0.00047397,14]
[322334620,1712956307511,-2142.41,0.00047397,31]
[322334621,1712956307526,-500.0,0.00047397,31]
[322334622,1712956307545,-985.95,0.00047397,31]
[322334623,1712956307561,-500.0,0.00047397,31]
[322334624,1712956307576,-937.11,0.00047397,31]
[322334625,1712956307587,-500.0,0.00047397,31]
[322334626,1712956307601,-530.55453008,0.00047397,31]
[322334627,1712956307615,-500.0,0.00047397,31]
[322334628,1712956307629,-691.8,0.00047397,31]
[322334629,1712956307641,-591.24,0.00047397,31]
[322334630,1712956307657,-2120.81,0.00047397,31]
[322334631,1712956307671,-500.0,0.00047397,31]
[322334632,1712956307683,-500.0,0.00047397,31]
[322334633,1712956307695,-534.15,0.00047397,31]
[322334634,1712956307707,-500.0,0.00047397,31]
[322334635,1712956307720,-512.64,0.00047397,31]
[322334636,1712956307733,-500.0,0.00047397,31]
[322334637,1712956307747,-812.89,0.00047397,31]
[322334638,1712956307760,-2419.16,0.00047397,31]
[322334639,1712956307773,-4130.71,0.00047397,31]
[322334640,1712956307786,-500.0,0.00047397,31]
[322334641,1712956307798,-500.0,0.00047397,31]
[322334642,1712956307810,-151.0,0.00047397,14]
[322334643,1712956307824,-500.0,0.00047397,31]
[322334644,1712956307835,-3070.85,0.00047397,31]
[322334645,1712956307847,-1198.069053,0.00047397,14]
[322334646,1712956307859,-500.0,0.00047397,31]
[322334647,1712956307872,-756.68,0.00047397,31]
[322334648,1712956307885,-1198.069053,0.00047397,14]
[322334649,1712956307899,-501.77,0.00047397,31]
[322334650,1712956307912,-679.55,0.00047397,31]
[322334651,1712956307925,-500.0,0.00047397,31]
[322334652,1712956307937,-500.0,0.00047397,31]
[322334653,1712956307950,-642.02,0.00047397,31]
[322334654,1712956307962,-500.0,0.00047397,31]
[322334655,1712956307974,-500.0,0.00047397,31]
[322334656,1712956307986,-190.6817,0.00047397,14]
[322334657,1712956307999,-1182.46,0.00047397,31]
[322334658,1712956308011,-500.0,0.00047397,31]
[322334659,1712956308023,-8113.01,0.00047397,31]
[322334660,1712956308035,-718.33,0.00047397,31]
[322334661,1712956308048,-906.01,0.00047397,31]
[322334662,1712956308061,-500.0,0.00047397,31]
[322334663,1712956308074,-500.0,0.00047397,31]
[322334664,1712956308086,-151.0,0.00047397,14]
[322334665,1712956308099,-190.6817,0.00047397,14]
[322334666,1712956308111,-500.0,0.00047397,31]
[322334667,1712956308124,-552.54,0.00047397,31]
[322334668,1712956308136,-648.96894495,0.00047397,31]
[322334669,1712956308148,-500.0,0.00047397,31]
[322334670,1712956308161,-1691.75,0.00047397,31]
[322334671,1712956308173,-500.0,0.00047397,31]
[322334672,1712956308186,-796.65,0.00047397,31]
[322334673,1712956308198,-291.271005,0.00047397,14]
[322334674,1712956308209,-500.0,0.00047397,31]
[322334675,1712956308222,-185.30231679,0.00047397,31]
[322334676,1712956308234,-291.271005,0.00047397,14]
[322334677,1712956308246,-500.0,0.00047397,31]
[322334678,1712956308258,-1931.38,0.00047397,31]
[322334679,1712956308270,-151.0,0.00047397,14]
[322334680,1712956308282,-1038.17,0.00047397,31]
[322334681,1712956308295,-500.0,0.00047397,31]
[322334682,1712956308308,-1909.8,0.00047397,31]
[322334683,1712956308322,-500.0,0.00047397,31]
[322334684,1712956308335,-500.0,0.00047397,31]
[322334685,1712956308347,-500.0,0.00047397,31]
[322334686,1712956308358,-1375.31,0.00047397,31]
[322334687,1712956308371,-500.0,0.00047397,31]
[322334688,1712956308384,-500.0,0.00047397,31]
[322334689,1712956308397,-500.0,0.00047397,31]
[322334690,1712956308410,-3128.79,0.00047397,31]
[322334691,1712956308423,-276.037624,0.00047397,14]
[322334692,1712956308435,-2327.1,0.00047397,31]
[322334693,1712956308447,-500.0,0.00047397,31]
[322334694,1712956308459,-18182.37,0.00047397,31]
[322334695,1712956308471,-276.037624,0.00047397,14]
[322334696,1712956308483,-500.0,0.00047397,31]
[322334697,1712956308494,-500.0,0.00047397,31]
[322334698,1712956308506,-365.33422,0.00047397,14]
[322334699,1712956308517,-6035.47,0.00047397,31]
[322334700,1712956308529,-2577.26,0.00047397,31]
[322334701,1712956308540,-500.0,0.00047397,31]
[322334702,1712956308552,-500.0,0.00047397,7]
[322334703,1712956308564,-151.0,0.00047397,14]
[322334704,1712956308577,-4212.38,0.00047397,31]
[322334705,1712956308588,-1143.56,0.00047397,31]
[322334706,1712956308600,-365.33422,0.00047397,14]
[322334707,1712956308611,-500.0,0.00047397,31]
[322334708,1712956308623,-500.0,0.00047397,31]
[322334709,1712956308634,-688.0,0.00047397,31]
[322334710,1712956308645,-709.5,0.00047397,31]
[322334711,1712956308657,-589.15835904,0.00047397,2]
[322334712,1712956308668,-500.0,0.00047397,31]
[322334713,1712956308679,-500.0,0.00047397,31]
[322334714,1712956308691,-500.0,0.00047397,31]
[322334715,1712956308702,-500.0,0.00047397,31]
[322334716,1712956308714,-1251.78,0.00047397,31]
[322334717,1712956308724,-500.0,0.00047397,31]
[322334718,1712956308736,-1227.56,0.00047397,31]
[322334719,1712956308747,-500.0,0.00047397,31]
[322334720,1712956308758,-500.0,0.00047397,31]
[322334721,1712956308769,-579.98,0.00047397,31]
[322334722,1712956308780,-962.14,0.00047397,31]
[322334723,1712956308792,-526.36,0.00047397,31]
[322334724,1712956308804,-500.0,0.00047397,31]
[322334725,1712956308815,-500.0,0.00047397,31]
[322334726,1712956308827,-500.0,0.00047397,31]
[322334727,1712956308838,-595.87,0.00047397,2]
[322334728,1712956308850,-15043.16,0.00047397,31]
[322334729,1712956308862,-500.0,0.00047397,31]
[322334730,1712956308872,-500.0,0.00047397,31]
[322334731,1712956308884,-3922.55,0.00047397,31]
[322334732,1712956308895,-500.0,0.00047397,31]
[322334733,1712956308906,-1614.08,0.00047397,31]
[322334734,1712956308917,-500.0,0.00047397,31]
[322334735,1712956308929,-500.0,0.00047397,31]
[322334736,1712956308940,-500.0,0.00047397,31]
[322334737,1712956308951,-529.92,0.00047397,31]
[322334738,1712956308962,-500.0,0.00047397,31]
[322334739,1712956308973,-3143.435192,0.00047397,14]
[322334740,1712956308984,-500.0,0.00047397,31]
[322334741,1712956308995,-500.0,0.00047397,31]
[322334742,1712956309007,-5579.77,0.00047397,31]
[322334743,1712956309019,-3143.435192,0.00047397,14]
[322334744,1712956309030,-500.0,0.00047397,31]
[322334745,1712956309042,-500.0,0.00047397,31]
[322334746,1712956309053,-680.34,0.00047397,31]
[322334747,1712956309065,-500.0,0.00047397,31]
[322334748,1712956309077,-224.634369,0.00047397,14]
[322334749,1712956309089,-500.0,0.00047397,31]
[322334750,1712956309100,-500.0,0.00047397,31]
[322334751,1712956309112,-500.0,0.00047397,31]
[322334752,1712956309124,-500.0,0.00047397,31]
[322334753,1712956309136,-500.0,0.00047397,31]
[322334754,1712956309147,-224.634369,0.00047397,14]
[322334755,1712956309159,-500.0,0.00047397,31]
[322334756,1712956309171,-151.0,0.00047397,14]
[322334757,1712956309182,-500.0,0.00047397,31]
[322334758,1712956309194,-500.0,0.00047397,31]
[322334759,1712956309210,-2156.38,0.00047397,31]
[322334760,1712956309222,-273.76695775,0.00047397,31]
[322334761,1712956309235,-500.0,0.00047397,31]
[322334762,1712956309247,-151.0,0.00047397,14]
[322334763,1712956309259,-500.0,0.00047397,31]
[322334764,1712956309271,-1171.95,0.00047397,31]
[322334765,1712956309284,-500.0,0.00047397,31]
[322334766,1712956309296,-500.0,0.00047397,31]
[322334767,1712956309308,-299.802974,0.00047397,2]
[322334768,1712956309321,-818.6,0.00047397,31]
[322334769,1712956309334,-500.0,0.00047397,31]
[322334770,1712956309346,-500.0,0.00047397,31]
[322334771,1712956309358,-299.802974,0.00047397,2]
[322334772,1712956309371,-500.0,0.00047397,31]
[322334773,1712956309382,-1005.81,0.00047397,31]
[322334774,1712956309394,-500.0,0.00047397,31]
[322334775,1712956309406,-2445.94,0.00047397,31]
[322334776,1712956309419,-1566.16,0.00047397,31]
[322334777,1712956309432,-500.0,0.00047397,31]